fUSD/lending_fUSD_20251229
["ID","MTS","AMOUNT","RATE_DAILY","PERIOD"]
[400014240,1767018667127,-1000.0,0.00042402,14]
[400014241,1767018667137,-150.0,0.00042438,14]
[400014242,1767018667147,-150.0,0.00042439,14]
[400014243,1767018667157,-466.0,0.00042446,30]
[400014244,1767018667167,-1000.0,0.00042456,14]
[400014245,1767018667177,-300.0,0.00042459,2]
[400014246,1767018667186,-284.84,0.00042468,120]
[400014247,1767018667195,-300.0,0.00042468,2]
[400014248,1767018667205,-1083.0,0.00042474,120]
[400014249,1767018667289,-150.0,0.00042474,14]
[400014250,1767018667299,-6912.92455696,0.00042513,15]
[400014251,1767018667309,-5779.7455141,0.00042513,15]
[400014252,1767018667318,-428.09091128,0.00042513,120]
[400014253,1767018667329,-150.0,0.00042529,14]
[400014254,1767018667339,-846.86,0.00042531,120]
[400014255,1767018667348,-672.91,0.00042531,120]
[400014256,1767018667358,-1405.01,0.00042531,120]
[400014257,1767018667368,-300.0,0.00042532,2]
[400014258,1767018667378,-1000.0,0.00042532,14]
[400014259,1767018667389,-299.73918347,0.00042552,120]
[400014260,1767018667399,-200.0,0.00042562,120]
[400014261,1767018667410,-213.10198804,0.00042568,120]
[400014262,1767018667419,-213.10198802,0.00042568,120]
[400014263,1767018667429,-150.0,0.00042598,2]
[400014264,1767018667439,-300.0,0.00042598,2]
[400014265,1767018667448,-150.0,0.000426,26]
[400014266,1767018667458,-552.08357871,0.000426,120]
[400014267,1767018667468,-150.0,0.000426,120]
[400014268,1767018667478,-253.0,0.000426,40]
[400014269,1767018667489,-328.848986,0.00042602,120]
[400014270,1767018667498,-158.541394,0.00042602,120]
[400014271,1767018667508,-151.0,0.00042602,120]
[400014272,1767018667518,-238.551246,0.00042602,120]
[400014273,1767018667527,-238.551246,0.00042602,120]
[400014274,1767018667536,-238.551246,0.00042602,120]
[400014275,1767018667546,-238.551246,0.00042602,120]
[400014276,1767018667556,-151.0,0.00042602,120]
[400014277,1767018667565,-151.0,0.00042602,120]
[400014278,1767018667575,-151.0,0.00042602,120]
[400014279,1767018667585,-846.86,0.00042602,120]
[400014280,1767018667595,-846.86,0.00042602,120]
[400014281,1767018667605,-846.86,0.00042602,120]
[400014282,1767018667615,-846.86,0.00042602,120]
[400014283,1767018667627,-846.86,0.00042602,120]
[400014284,1767018667639,-846.86,0.00042602,120]
[400014285,1767018667649,-846.86,0.00042602,120]
[400014286,1767018667658,-846.86,0.00042602,120]
[400014287,1767018667670,-846.87330983,0.00042602,120]
[400014288,1767018667679,-672.91,0.00042602,120]
[400014289,1767018667689,-672.91,0.00042602,120]
[400014290,1767018667700,-672.91,0.00042602,120]
[400014291,1767018667709,-672.91,0.00042602,120]
[400014292,1767018667719,-672.91,0.00042602,120]
[400014293,1767018667728,-672.91,0.00042602,120]
[400014294,1767018667737,-672.91,0.00042602,120]
[400014295,1767018667746,-672.91,0.00042602,120]
[400014296,1767018667756,-672.93359538,0.00042602,120]
[400014297,1767018667766,-1405.01,0.00042602,120]
[400014298,1767018667776,-1405.01,0.00042602,120]
[400014299,1767018667786,-1405.01,0.00042602,120]
[400014300,1767018667796,-1405.01,0.00042602,120]
[400014301,1767018667806,-1405.01,0.00042602,120]
[400014302,1767018667816,-1405.01,0.00042602,120]
[400014303,1767018667826,-1405.01,0.00042602,120]
[400014304,1767018667835,-1405.01,0.00042602,120]
[400014305,1767018667844,-1405.19542362,0.00042602,120]
[400014306,1767018667854,-500.0,0.00042602,120]
[400014307,1767018667863,-500.0,0.00042602,120]
[400014308,1767018667872,-500.0,0.00042602,120]
[400014309,1767018667884,-500.0,0.00042602,120]
[400014310,1767018667893,-500.0,0.00042602,120]
[400014311,1767018667904,-500.0,0.00042602,120]
[400014312,1767018667917,-259.93784872,0.00042602,120]
[400014313,1767018667926,-500.0,0.00042604,120]
[400014314,1767018667936,-500.0,0.00042604,120]
[400014315,1767018667945,-500.0,0.00042604,120]
[400014316,1767018667954,-500.0,0.00042604,120]
[400014317,1767018667963,-509.98894465,0.00042604,120]
[400014318,1767018667972,-799.17,0.00042604,120]
[400014319,1767018667982,-799.17,0.00042604,120]
[400014320,1767018667991,-799.17,0.00042604,120]
[400014321,1767018668001,-799.17,0.00042604,120]
[400014322,1767018668011,-799.17,0.00042604,120]
[400014323,1767018668020,-799.17,0.00042604,120]
[400014324,1767018668029,-799.17,0.00042604,120]
[400014325,1767018668039,-799.17,0.00042604,120]
[400014326,1767018668049,-799.2791582,0.00042604,120]
[400014327,1767018668059,-151.0,0.0004261,120]
[400014328,1767018668068,-151.0,0.0004261,120]
[400014329,1767018668077,-151.0,0.0004261,120]
[400014330,1767018668087,-554.94073115,0.00042613,60]
[400014331,1767018668097,-293.90223744,0.0004262,2]
[400014332,1767018668107,-1737892.4855,0.00042623,30]
[400014333,1767018668117,-7313.15432604,0.00042649,2]
[400014334,1767018668126,-400.0,0.000427,120]
[400014335,1767018668138,-207.422242,0.000427,120]
[400014336,1767018668147,-834.28232251,0.000427,2]
[400014337,1767018668156,-728.24757425,0.00042715,8]
[400014338,1767018668165,-213.92577277,0.0004272,15]
[400014339,1767018668175,-313.52630454,0.0004272,2]
[400014340,1767018668184,-293.90223744,0.00042723,2]
[400014341,1767018668194,-478.10624806,0.0004277,3]
[400014342,1767018668204,-295.0,0.000428,45]
[400014343,1767018668214,-170.0,0.000428,120]
[400014344,1767018668223,-158.0,0.000428,120]
[400014345,1767018668233,-867839.53569782,0.000428,9]
[400014346,1767018668244,-244303.40177368,0.000428,8]
[400014347,1767018668254,-400.0,0.000428,120]
[400014348,1767018668264,-150.0,0.000428,120]
[400014349,1767018668273,-52584.56774669,0.000428,2]
[400014350,1767018668283,-1393.90258207,0.000428,4]
[400014351,1767018668293,-328.848981,0.000428,120]
[400014352,1767018668303,-151.3531,0.000428,120]
[400014353,1767018668313,-238.551246,0.000428,120]
[400014354,1767018668322,-238.551246,0.000428,120]
[400014355,1767018668332,-238.551246,0.000428,120]
[400014356,1767018668341,-238.551253,0.000428,120]
[400014357,1767018668351,-178.31561085,0.000428,120]
[400014358,1767018668361,-151.0,0.000428,120]
[400014359,1767018668371,-151.0,0.000428,120]
[400014360,1767018668381,-3551.60044538,0.00042802,2]
[400014361,1767018668391,-150.62,0.00042808,120]
[400014362,1767018668401,-203.07573084,0.00042814,30]
[400014363,1767018668411,-203.07573084,0.00042814,30]
[400014364,1767018668421,-27478.21205661,0.0004282,30]
[400014365,1767018668431,-27478.21205661,0.0004282,30]
[400014366,1767018668441,-27478.21205661,0.0004282,30]
[400014367,1767018668451,-27478.21205661,0.0004282,30]
[400014368,1767018668462,-50000.0,0.00042832,40]
[400014369,1767018668472,-50000.0,0.00042832,41]
[400014370,1767018668482,-50000.0,0.00042832,42]
[400014371,1767018668492,-50000.0,0.00042832,43]
[400014372,1767018668503,-50000.0,0.00042832,44]
[400014373,1767018668513,-50000.0,0.00042832,45]
[400014374,1767018668523,-50000.0,0.00042832,46]
[400014375,1767018668532,-50000.0,0.00042832,47]
[400014376,1767018668541,-50000.0,0.00042832,48]
[400014377,1767018668551,-50000.0,0.00042832,49]
[400014378,1767018668560,-16783017.45434653,0.00042833,7]
[400014379,1767018668720,-2186.725,0.00042833,7]
[400014380,1767018668732,-1104.89183922,0.00042833,7]
[400014381,1767018668743,-409.3595,0.00042833,7]
[400014382,1767018668755,-325.0,0.00042833,7]
[400014383,1767018669134,201.839,0.0003,120]
[400014473,1767019831734,-500.0,0.00014573,2]
[400014474,1767019831744,-500.0,0.00014573,2]
[400014475,1767019831755,-210.77241537,0.00014573,2]
[400014476,1767019831765,-387.089,0.00015094,2]
[400014477,1767019831775,-500.0,0.00015121,2]
[400014478,1767019831785,-500.0,0.00015121,2]
[400014479,1767019831794,-300.0,0.000153,2]
[400014480,1767019831805,-300.0,0.000153,2]
[400014481,1767019831814,-1210.75858463,0.00015301,2]
[400014482,1767019831859,-264.297,0.00015301,2]
[400014483,1767019831871,-4657.32471109,0.00015301,2]
[400014484,1767019831881,-8145.10707064,0.00015302,2]
[400014485,1767019831893,-8482.72271517,0.00015302,2]
[400014486,1767019831931,-1493.83764128,0.00015302,2]
[400014487,1767019831942,-574.96778752,0.00015302,2]
[400014488,1767019831953,-4919.87289921,0.00015302,2]
[400014516,1767019837662,-3761.67426665,0.00015302,2]
[400014517,1767019837835,-967.989,0.00015302,2]
[400014556,1767019839706,-369.0,0.00015302,2]
[400014557,1767019839718,-817.28181432,0.00015302,2]
[400014558,1767019839729,-3801.43557648,0.00015302,2]
[400014559,1767019839774,-966666.11122873,0.00015302,2]
[400014560,1767019839784,-509.38793221,0.00015401,2]
[400014561,1767019839794,-500.0,0.00015401,2]
[400014562,1767019839803,-447.29792643,0.00015401,2]
[400014563,1767019839814,-300.0,0.0001603,2]
[400014564,1767019839823,-151.0,0.00016284,2]
[400014565,1767019839832,-151.0,0.00016284,2]
[400014566,1767019839844,-500.0,0.00016341,2]
[400014567,1767019839854,-597.81,0.00016341,2]
[400014568,1767019839863,-164.62,0.0001644,2]
[400014569,1767019839872,-420.0,0.0001674,2]
[400014570,1767019839882,-250.0,0.00017,2]
[400014571,1767019839891,-282.63089892,0.00017709,2]
[400014572,1767019839900,-587.0,0.00018315,2]
[400014573,1767019839911,-6132.38029566,0.00018349,2]
[400014574,1767019839920,-203.116346,0.00019,2]
[400014575,1767019839932,-250.0,0.00019255,2]
[400014576,1767019839941,-1202.23,0.00019944,2]
[400014577,1767019839950,-380.03,0.0002,2]
[400014597,1767019840175,-823.0,0.00020039,2]
[400014599,1767019840184,-150.0,0.00020311,2]
[400014601,1767019840194,-10908.74,0.0002135,2]
[400014603,1767019840203,-6132.38029566,0.00021398,2]
[400014605,1767019840213,-4231.75,0.00021505,2]
[400014607,1767019840222,-166.66,0.00021837,2]
[400014609,1767019840231,-747.0,0.00021925,2]
[400014611,1767019840240,-166.66,0.00022297,30]
[400014613,1767019840250,-236.99,0.000226,7]
[400014615,1767019840259,-166.66,0.00022757,30]
[400014617,1767019840268,-166.66,0.00023216,30]
[400014619,1767019840278,-200.0,0.00023287,2]
[400014621,1767019840287,-166.66,0.00023676,30]
[400014623,1767019840295,-1500.0,0.00024,2]
[400014625,1767019840305,-1500.0,0.00024,2]
[400014627,1767019840314,-1500.0,0.00024,2]
[400014629,1767019840323,-1500.0,0.00024,2]
[400014631,1767019840332,-1500.0,0.00024,2]
[400014633,1767019840341,-1500.0,0.00024,2]
[400014635,1767019840350,-1647.38,0.00024,2]
[400014637,1767019840360,-166.66,0.00024136,30]
[400014639,1767019840370,-4554.55,0.00024181,2]
[400014641,1767019840379,-6132.38029566,0.00024446,2]
[400014643,1767019840388,-2222.141,0.00027132,2]
[400014645,1767019840397,-1327.0,0.00027132,2]
[400014647,1767019840407,-593.512,0.00027132,2]
[400014649,1767019840416,-3521.0,0.00027167,2]
[400014651,1767019840426,-6132.38029566,0.00027494,2]
[400014653,1767019840435,-500.0,0.00028712,2]
[400014655,1767019840443,-572.16,0.00029009,2]
[400014657,1767019840454,-500.0,0.00029014,2]
[400014659,1767019840463,-1831.76733762,0.000299,2]
[400014661,1767019840472,-457.2,0.00030137,3]
[400014663,1767019840481,-387.8,0.00030137,6]
[400014665,1767019840490,-150.0,0.00030203,2]
[400014667,1767019840499,-6132.38029566,0.00030543,2]
[400014669,1767019840508,-150.62,0.00031254,30]
[400014671,1767019840517,-19396.52,0.00031581,2]
[400014673,1767019840527,-1898.0,0.000323,2]
[400014675,1767019840536,-166.66,0.00032488,2]
[400014677,1767019840545,-1000.0,0.00033039,2]
[400014680,1767019840557,-166.66,0.0003356,2]
[400014682,1767019840566,-6132.38029566,0.00033591,2]
[400014684,1767019840577,-217.36116109,0.00033614,7]
[400014686,1767019840586,-615.9921003,0.00033614,7]
[400014688,1767019840596,-11186.52,0.00033615,120]
[400014690,1767019840605,-166.66,0.00034633,2]
[400014692,1767019840618,-166.66,0.00035705,2]
[400014694,1767019840628,-1898.41317773,0.00036,2]
[400014696,1767019840638,-6132.38029566,0.00036639,2]
[400014698,1767019840648,-166.66,0.00036777,2]
[400014700,1767019840658,-192.49708535,0.000372,120]
[400014702,1767019840668,-166.66,0.0003785,2]
[400014704,1767019840677,-150.62,0.00038104,30]
[400014706,1767019840687,-685.8,0.00038356,34]
[400014708,1767019840696,-581.7,0.00038356,50]
[400014710,1767019840704,-595.39568782,0.00038565,2]
[400014712,1767019840713,-364.18164659,0.00038565,2]
[400014714,1767019840722,-577.5673783,0.00038565,2]
[400014716,1767019840732,-1321.648778,0.00038565,2]
[400014718,1767019840741,-595.39568782,0.00038565,2]
[400014720,1767019840752,-364.18164659,0.00038565,2]
[400014722,1767019840761,-577.5673783,0.00038565,2]
[400014724,1767019840770,-1321.648778,0.00038565,2]
[400014726,1767019840779,-223.59942424,0.00038666,120]
[400014728,1767019840788,-387.09,0.0003882,52]
[400014730,1767019840797,-6132.38029566,0.00039688,2]
[400014732,1767019840806,-276.0,0.0004,2]
[400014734,1767019840815,-150.0,0.00040959,60]
[400014736,1767019840824,-500.0,0.00040959,60]
[400014738,1767019840834,-150.0,0.00040986,60]
[400014740,1767019840843,-500.0,0.00040986,60]
[400014742,1767019840852,-254.97447821,0.00041014,60]
[400014744,1767019840862,-500.0,0.00041014,60]
[400014746,1767019840871,-500.0,0.00041041,60]
[400014748,1767019840882,-235.20351801,0.00041095,120]
[400014750,1767019840892,-500.0,0.00041095,120]
[400014752,1767019840901,-500.0,0.00041095,120]
[400014755,1767019840918,-334.27815094,0.00041095,120]
[400014757,1767019840932,-301.97629584,0.00041096,2]
[400014759,1767019840942,-500.0,0.00041189,60]
[400014761,1767019840952,-500.0,0.00041189,60]
[400014763,1767019840963,-404.0,0.00041372,30]
[400014765,1767019840973,-3702.10023106,0.00041518,7]
[400014767,1767019840982,-500.0,0.00041737,60]
[400014769,1767019840992,-500.0,0.00041737,60]
[400014771,1767019841001,-404.0,0.00041798,30]
[400014773,1767019841010,-150.0,0.00041976,120]
[400014775,1767019841019,-283.0,0.00042086,2]
[400014777,1767019841029,-150.0,0.00042191,120]
[400014779,1767019841038,-404.0,0.00042225,30]
[400014781,1767019841047,-200.383691,0.00042275,7]
[400014783,1767019841057,-300.292242,0.00042284,110]
[400014785,1767019841066,-500.0,0.00042285,60]
[400014787,1767019841075,-500.0,0.00042285,60]
[400014789,1767019841085,-1093.4,0.00042334,7]
[400014791,1767019841094,-150.0,0.00042405,120]
[400014793,1767019841103,-1121.02,0.000425,105]
[400014795,1767019841112,-150.0,0.00042619,120]
[400014797,1767019841121,-710.7557,0.00042619,3]
[400014799,1767019841131,-404.0,0.00042651,30]
[400014801,1767019841141,-2028.23482173,0.000427,30]
[400014803,1767019841150,-200.0,0.00042719,15]
[400014805,1767019841162,-217.9699959,0.00042719,15]
[400014807,1767019841172,-620.0,0.00042719,15]
[400014809,1767019841181,-214.8,0.00042719,15]
[400014811,1767019841190,-330.42696608,0.00042719,15]
[400014813,1767019841199,-500.0,0.00042719,15]
[400014815,1767019841209,-500.0,0.00042719,15]
[400014817,1767019841219,-500.0,0.00042719,15]
[400014819,1767019841228,-500.0,0.00042719,15]
[400014821,1767019841238,-500.0,0.00042719,15]
[400014823,1767019841247,-500.0,0.00042719,15]
[400014825,1767019841256,-500.0,0.00042719,15]
[400014827,1767019841265,-500.0,0.00042719,15]
[400014829,1767019841274,-500.0,0.00042719,15]
[400014831,1767019841283,-1000.0,0.00042719,15]
[400014833,1767019841292,-500.0,0.00042719,15]
[400014835,1767019841302,-500.0,0.00042719,15]
[400014837,1767019841312,-1000.0,0.00042719,15]
[400014839,1767019841321,-500.0,0.00042719,15]
[400014842,1767019841339,-514.51547206,0.00042719,15]
[400014844,1767019841351,-1000.0,0.00042719,15]
[400014846,1767019841361,-500.0,0.00042719,15]
[400014848,1767019841370,-500.0,0.00042719,15]
[400014850,1767019841380,-250.0,0.00042719,15]
[400014852,1767019841390,-261.33546544,0.00042719,15]
[400014854,1767019841400,-321.88,0.00042719,30]
[400014856,1767019841412,-500.0,0.00042719,15]
[400014858,1767019841421,-553.64373806,0.00042719,15]
[400014860,1767019841431,-500.0,0.00042719,15]
[400014863,1767019841441,-500.0,0.00042719,15]
[400014865,1767019841450,-500.0,0.00042719,15]
[400014867,1767019841460,-500.0,0.00042719,15]
[400014869,1767019841469,-462.02607038,0.00042719,15]
[400014870,1767019841479,-329.0,0.00042719,15]
[400014872,1767019841490,-192.49708535,0.00042736,120]
[400014874,1767019841499,-378.18559518,0.00042736,8]
[400014875,1767019841509,-469.84902878,0.00042736,2]
[400014878,1767019841519,-6132.38029566,0.00042736,15]
[400014879,1767019841528,-3005.17379412,0.00042736,2]
[400014882,1767019841538,-250.0,0.0004277,3]
[400014884,1767019841548,-450.0,0.0004277,3]
[400014886,1767019841558,-256.289732,0.0004277,120]
[400014888,1767019841569,-500250.40060214,0.0004279,120]
[400014889,1767019841579,-477.43,0.000428,120]
[400014891,1767019841588,-253.0,0.000428,40]
[400014893,1767019841598,-5003.6504,0.00042802,15]
[400014895,1767019841607,-150.0,0.00042821,14]
[400014898,1767019841617,-200.383691,0.00042826,7]
[400014899,1767019841626,-379.29650573,0.00042832,120]
[400014901,1767019841636,-500.0,0.00042832,120]
[400014903,1767019841645,-500.0,0.00042832,120]
[400014905,1767019841656,-500.0,0.00042832,120]
[400014907,1767019841666,-500.0,0.00042832,120]
[400014909,1767019841675,-500.0,0.00042832,120]
[400014912,1767019841684,-500.0,0.00042832,120]
[400014914,1767019841695,-500.0,0.00042832,120]
[400014916,1767019841704,-500.0,0.00042832,120]
[400014917,1767019841713,-500.0,0.00042832,120]
[400014919,1767019841723,-500.0,0.00042832,120]
[400014921,1767019841733,-500.0,0.00042832,120]
[400014923,1767019841743,-500.0,0.00042832,120]
[400014925,1767019841752,-500.0,0.00042832,120]
[400014927,1767019841761,-500.0,0.00042832,120]
[400014929,1767019841771,-500.0,0.00042832,120]
[400014932,1767019841780,-500.0,0.00042832,120]
[400014933,1767019841789,-500.0,0.00042832,120]
[400014935,1767019841798,-500.0,0.00042832,120]
[400014937,1767019841807,-500.0,0.00042832,120]
[400014939,1767019841817,-500.0,0.00042832,120]
[400014942,1767019841827,-500.0,0.00042832,120]
[400014944,1767019841837,-500.0,0.00042832,120]
[400014946,1767019841847,-500.0,0.00042832,120]
[400014948,1767019841856,-500.0,0.00042832,120]
[400014949,1767019841865,-500.0,0.00042832,120]
[400014951,1767019841874,-500.0,0.00042832,120]
[400014953,1767019841883,-500.0,0.00042832,120]
[400014956,1767019841893,-500.0,0.00042832,120]
[400014957,1767019841902,-500.0,0.00042832,120]
[400014959,1767019841913,-500.0,0.00042832,120]
[400014961,1767019841922,-500.0,0.00042832,120]
[400014963,1767019841934,-500.0,0.00042832,120]
[400014965,1767019841944,-500.0,0.00042832,120]
[400014967,1767019841953,-500.0,0.00042832,120]
[400014969,1767019841962,-500.0,0.00042832,120]
[400014971,1767019841971,-500.0,0.00042832,120]
[400014973,1767019841980,-500.0,0.00042832,120]
[400014975,1767019841990,-500.0,0.00042832,120]
[400014978,1767019842002,-500.0,0.00042832,120]
[400014980,1767019842010,-500.0,0.00042832,120]
[400014982,1767019842020,-500.0,0.00042832,120]
[400014984,1767019842029,-500.0,0.00042832,120]
[400014986,1767019842038,-500.0,0.00042832,120]
[400014988,1767019842048,-500.0,0.00042832,120]
[400014990,1767019842057,-500.0,0.00042832,120]
[400014992,1767019842066,-500.0,0.00042832,120]
[400014994,1767019842075,-500.0,0.00042832,120]
[400014996,1767019842084,-500.0,0.00042832,120]
[400014998,1767019842094,-500.0,0.00042832,120]
[400015000,1767019842106,-500.0,0.00042832,120]
[400015002,1767019842115,-500.0,0.00042832,120]
[400015004,1767019842124,-500.0,0.00042832,120]
[400015006,1767019842134,-500.0,0.00042832,120]
[400015008,1767019842143,-500.0,0.00042832,120]
[400015010,1767019842152,-500.0,0.00042832,120]
[400015012,1767019842163,-500.0,0.00042832,120]
[400015014,1767019842172,-500.0,0.00042832,120]
[400015016,1767019842181,-500.0,0.00042832,120]
[400015018,1767019842190,-500.0,0.00042832,120]
[400015020,1767019842200,-500.0,0.00042832,120]
[400015022,1767019842209,-500.0,0.00042832,120]
[400015024,1767019842218,-500.0,0.00042832,120]
[400015026,1767019842227,-500.0,0.00042832,120]
[400015028,1767019842236,-500.0,0.00042832,120]
[400015030,1767019842246,-500.0,0.00042832,120]
[400015032,1767019842256,-500.0,0.00042832,120]
[400015034,1767019842265,-500.0,0.00042832,120]
[400015036,1767019842274,-500.0,0.00042832,120]
[400015038,1767019842283,-500.0,0.00042832,120]
[400015040,1767019842292,-500.0,0.00042832,120]
[400015042,1767019842301,-500.0,0.00042832,120]
[400015044,1767019842311,-500.0,0.00042832,120]
[400015046,1767019842321,-500.0,0.00042832,120]
[400015048,1767019842330,-500.0,0.00042832,120]
[400015050,1767019842339,-500.0,0.00042832,120]
[400015052,1767019842348,-500.0,0.00042832,120]
[400015054,1767019842357,-500.0,0.00042832,120]
[400015056,1767019842366,-500.0,0.00042832,120]
[400015058,1767019842375,-500.0,0.00042832,120]
[400015060,1767019842384,-500.0,0.00042832,120]
[400015062,1767019842392,-500.0,0.00042832,120]
[400015064,1767019842402,-500.0,0.00042832,120]
[400015066,1767019842411,-500.0,0.00042832,120]
[400015068,1767019842420,-500.0,0.00042832,120]
[400015070,1767019842429,-500.0,0.00042832,120]
[400015072,1767019842438,-500.0,0.00042832,120]
[400015074,1767019842447,-500.0,0.00042832,120]
[400015076,1767019842456,-500.0,0.00042832,120]
[400015078,1767019842465,-500.0,0.00042832,120]
[400015080,1767019842474,-500.0,0.00042832,120]
[400015082,1767019842483,-500.0,0.00042832,120]
[400015084,1767019842493,-500.0,0.00042832,120]
[400015086,1767019842505,-500.0,0.00042832,120]
[400015088,1767019842514,-500.0,0.00042832,120]
[400015090,1767019842523,-500.0,0.00042832,120]
[400015092,1767019842532,-500.0,0.00042832,120]
[400015094,1767019842542,-500.0,0.00042832,120]
[400015096,1767019842551,-500.0,0.00042832,120]
[400015098,1767019842564,-500.0,0.00042832,120]
[400015100,1767019842574,-555.0,0.00042832,120]
[400015102,1767019842583,-500.0,0.00042832,120]
[400015104,1767019842593,-500.0,0.00042832,120]
[400015106,1767019842603,-500.0,0.00042832,120]
[400015108,1767019842612,-500.0,0.00042832,120]
[400015110,1767019842621,-500.0,0.00042832,120]
[400015112,1767019842630,-500.0,0.00042832,120]
[400015114,1767019842640,-500.0,0.00042832,120]
[400015116,1767019842649,-500.0,0.00042832,120]
[400015118,1767019842659,-500.0,0.00042832,120]
[400015120,1767019842668,-500.0,0.00042832,120]
[400015122,1767019842677,-500.0,0.00042832,120]
[400015124,1767019842686,-500.0,0.00042832,120]
[400015126,1767019842695,-500.0,0.00042832,120]
[400015128,1767019842704,-500.0,0.00042832,120]
[400015130,1767019842714,-500.0,0.00042832,120]
[400015132,1767019842723,-500.0,0.00042832,120]
[400015134,1767019842732,-500.0,0.00042832,120]
[400015136,1767019842741,-500.0,0.00042832,120]
[400015138,1767019842750,-500.0,0.00042832,120]
[400015140,1767019842761,-500.0,0.00042832,120]
[400015142,1767019842770,-500.0,0.00042832,120]
[400015144,1767019842779,-500.0,0.00042832,120]
[400015146,1767019842788,-500.0,0.00042832,120]
[400015148,1767019842797,-500.0,0.00042832,120]
[400015150,1767019842806,-500.0,0.00042832,120]
[400015152,1767019842815,-500.0,0.00042832,120]
[400015154,1767019842825,-889.0,0.00042832,120]
[400015156,1767019842834,-500.0,0.00042832,120]
[400015158,1767019842843,-500.0,0.00042832,120]
[400015160,1767019842856,-500.0,0.00042832,120]
[400015162,1767019842865,-500.0,0.00042832,120]
[400015164,1767019842874,-500.0,0.00042832,120]
[400015166,1767019842883,-500.0,0.00042832,120]
[400015168,1767019842893,-500.0,0.00042832,120]
[400015170,1767019842902,-500.0,0.00042832,120]
[400015172,1767019842913,-500.0,0.00042832,120]
[400015174,1767019842925,-500.0,0.00042832,120]
[400015176,1767019842934,-500.0,0.00042832,120]
[400015178,1767019842944,-500.0,0.00042832,120]
[400015181,1767019842953,-500.0,0.00042832,120]
[400015182,1767019842966,-500.0,0.00042832,120]
[400015185,1767019842975,-500.0,0.00042832,120]
[400015187,1767019842985,-500.0,0.00042832,120]
[400015188,1767019842994,-500.0,0.00042832,120]
[400015190,1767019843004,-500.0,0.00042832,120]
[400015193,1767019843014,-500.0,0.00042832,120]
[400015194,1767019843024,-500.0,0.00042832,120]
[400015195,1767019843033,-500.0,0.00042832,120]
[400015196,1767019843042,-500.0,0.00042832,120]
[400015197,1767019843051,-500.0,0.00042832,120]
[400015198,1767019843060,-500.0,0.00042832,120]
[400015199,1767019843069,-500.0,0.00042832,120]
[400015200,1767019843078,-500.0,0.00042832,120]
[400015201,1767019843089,-500.0,0.00042832,120]
[400015202,1767019843102,-500.0,0.00042832,120]
[400015203,1767019843111,-500.0,0.00042832,120]
[400015204,1767019843120,-500.0,0.00042832,120]
[400015205,1767019843129,-500.0,0.00042832,120]
[400015206,1767019843138,-500.0,0.00042832,120]
[400015207,1767019843146,-500.0,0.00042832,120]
[400015208,1767019843155,-500.0,0.00042832,120]
[400015209,1767019843165,-500.0,0.00042832,120]
[400015211,1767019843174,-500.0,0.00042832,120]
[400015212,1767019843184,-500.0,0.00042832,120]
[400015214,1767019843193,-500.0,0.00042832,120]